[Event "FIDE Open World Rapid 2024"]
[Site "New York"]
[Date "2024.12.27"]
[Round "9.30"]
[White "Makarian, Rudik"]
[Black "Ivanchuk, Vasyl"]
[Result "1/2-1/2"]
[ECO "E11"]
[WhiteElo "2547"]
[BlackElo "2630"]
[Annotator "ChessBase"]
[PlyCount "153"]
[EventDate "2024.12.14"]
[EventType "swiss"]
[EventCountry "USA"]
[SourceTitle "playchess.com"]
[Source "ChessBase"]
[SourceQuality "1"]
[TimeControl "900+10"]

1. d4 {[%emt 0:00:01]} Nf6 {[%emt 0:00:01]} 2. c4 {[%emt 0:00:02]} e6 {[%emt 0:00:01]} 3. Nf3 {[%emt 0:00:02]} Bb4+ {[%emt 0:00:07]} 4. Bd2 {[%emt 0:00:01]} c5 {[%emt 0:00:02]} 5. Bxb4 {[%emt 0:00:04]} cxb4 {[%emt 0:00:00]} 6. a3 {[%emt 0:00:03]} bxa3 {[%emt 0:00:07]} 7. Rxa3 {[%emt 0:00:02]} O-O {[%emt 0:00:28]} 8. e3 {[%emt 0:00:06]} d6 {[%emt 0:00:12]} 9. Nc3 {[%emt 0:00:02]} Nc6 {[%emt 0:00:15]} 10. Bd3 {[%emt 0:00:03]} e5 {[%emt 0:00:11]} 11. O-O {[%emt 0:01:18]} Bg4 {[%emt 0:00:42]} 12. dxe5 {[%emt 0:01:40]} dxe5 {[%emt 0:00:09]} 13. Ne4 {[%emt 0:01:55]} Nd7 {[%emt 0:02:44]} 14. Bb1 {[%emt 0:01:57]} Qe7 {[%emt 0:00:33]} 15. Qd6 {[%emt 0:00:35]} Qxd6 {[%emt 0:00:49]} 16. Nxd6 {[%emt 0:00:02]} Bxf3 {[%emt 0:00:01]} 17. gxf3 {[%emt 0:00:02]} Nc5 {[%emt 0:00:02]} 18. Ne4 {[%emt 0:02:54]} Na6 {[%emt 0:00:01]} 19. Nc3 {[%emt 0:00:26]} Nc5 {[%emt 0:00:21]} 20. Na4 {[%emt 0:00:09]} Nd7 {[%emt 0:03:10]} 21. Be4 {[%emt 0:00:03]} Rac8 {[%emt 0:00:27]} 22. Nc3 {[%emt 0:01:38]} a6 {[%emt 0:00:11]} 23. Rd1 {[%emt 0:00:02]} Nf6 {[%emt 0:00:31]} 24. Nd5 {[%emt 0:00:16]} Nxe4 {[%emt 0:00:12]} 25. fxe4 {[%emt 0:00:02]} Rfd8 {[%emt 0:00:03]} 26. Rad3 {[%emt 0:00:33]} Kf8 {[%emt 0:00:51]} 27. b4 {[%emt 0:00:02]} Rd7 {[%emt 0:00:46]} 28. Nb6 {[%emt 0:02:11]} Rxd3 {[%emt 0:00:01]} 29. Rxd3 {[%emt 0:00:01]} Rc7 {[%emt 0:00:07]} 30. b5 {[%emt 0:00:06]} axb5 {[%emt 0:02:36]} 31. cxb5 {[%emt 0:00:01]} Na7 {[%emt 0:00:01]} 32. Nd7+ {[%emt 0:01:46]} Ke7 {[%emt 0:01:05]} 33. b6 {[%emt 0:00:01]} Rc1+ {[%emt 0:00:07]} 34. Kg2 {[%emt 0:00:01]} Nc6 {[%emt 0:01:54]} 35. Rd5 {[%emt 0:00:01]} Rb1 {[%emt 0:00:11]} 36. Nxe5 {[%emt 0:01:43]} Rxb6 {[%emt 0:00:26]} 37. Nxc6+ {[%emt 0:01:02]} bxc6 {[%emt 0:00:33]} 38. Ra5 {[%emt 0:00:02]} Rb2 {[%emt 0:00:24]} 39. Ra7+ {[%emt 0:00:03]} Ke6 {[%emt 0:00:01]} 40. Rc7 {[%emt 0:00:08]} Rc2 {[%emt 0:00:03]} 41. Kg3 {[%emt 0:00:12]} c5 {[%emt 0:00:53]} 42. f4 {[%emt 0:00:01]} c4 {[%emt 0:00:04]} 43. f5+ {[%emt 0:00:21]} Kf6 {[%emt 0:00:01]} 44. Kf4 {[%emt 0:00:29]} g5+ {[%emt 0:00:17]} 45. fxg6 {[%emt 0:00:15]} hxg6 {[%emt 0:00:20]} 46. h4 {[%emt 0:00:08]} c3 {[%emt 0:00:20]} 47. Rc6+ {[%emt 0:00:04]} Ke7 {[%emt 0:00:01]} 48. Ke5 {[%emt 0:00:11]} Rc1 {[%emt 0:00:06]} 49. Rc7+ {[%emt 0:00:23]} Kf8 {[%emt 0:00:28]} 50. Kf6 {[%emt 0:00:00]} Rf1+ {[%emt 0:00:03]} 51. Kg5 {[%emt 0:00:00]} Rg1+ {[%emt 0:00:16]} 52. Kf4 {[%emt 0:00:09]} Rc1 {[%emt 0:00:11]} 53. e5 {[%emt 0:00:05]} c2 {[%emt 0:00:06]} 54. Ke4 {[%emt 0:00:03]} Rh1 {[%emt 0:00:20]} 55. Rxc2 {[%emt 0:00:03]} Rxh4+ {[%emt 0:00:01]} 56. Kd5 {[%emt 0:00:03]} Ra4 {[%emt 0:00:09]} 57. Rc8+ {[%emt 0:00:25]} Ke7 {[%emt 0:00:05]} 58. Rc7+ {[%emt 0:00:01]} Ke8 {[%emt 0:00:01]} 59. Rb7 {[%emt 0:00:33]} g5 {[%emt 0:00:14]} 60. Rb8+ {[%emt 0:00:16]} Ke7 {[%emt 0:00:22]} 61. Rg8 {[%emt 0:00:09]} Rg4 {[%emt 0:00:12]} 62. e6 {[%emt 0:00:16]} fxe6+ {[%emt 0:00:06]} 63. Ke5 {[%emt 0:00:01]} Kf7 {[%emt 0:00:10]} 64. Ra8 {[%emt 0:00:02]} Rb4 {[%emt 0:00:09]} 65. Ra7+ {[%emt 0:00:20]} Kg6 {[%emt 0:00:01]} 66. Ra6 {[%emt 0:00:04]} Kf7 {[%emt 0:00:22]} 67. Ra7+ {[%emt 0:00:02]} Kg6 {[%emt 0:00:01]} 68. Ra6 {[%emt 0:00:01]} g4 {[%emt 0:00:14]} 69. Rxe6+ {[%emt 0:00:07]} Kg5 {[%emt 0:00:02]} 70. Re8 {[%emt 0:00:06]} g3 {[%emt 0:00:26]} 71. Rg8+ {[%emt 0:00:05]} Kh4 {[%emt 0:00:01]} 72. e4 {[%emt 0:00:01]} Rb1 {[%emt 0:00:14]} 73. Kd5 {[%emt 0:00:29]} Kh3 {[%emt 0:00:15]} 74. e5 {[%emt 0:00:25]} g2 {[%emt 0:00:02]} 75. e6 {[%emt 0:00:04]} g1=Q {[%emt 0:00:03]} 76. Rxg1 {[%emt 0:00:04]} Rxg1 {[%emt 0:00:02]} 77. e7 {[%emt 0:00:02]} 1/2-1/2

[Event "FIDE Open World Rapid 2024"]
[Site "New York"]
[Date "2024.12.28"]
[Round "9.31"]
[White "Indjic, Aleksandar"]
[Black "Rosen, Eric"]
[Result "1-0"]
[ECO "A17"]
[WhiteElo "2647"]
[BlackElo "2377"]
[Annotator "ChessBase"]
[PlyCount "79"]
[EventDate "2024.12.14"]
[EventType "swiss"]
[EventCountry "USA"]
[SourceTitle "playchess.com"]
[Source "ChessBase"]
[SourceQuality "1"]
[TimeControl "900+10"]

1. Nf3 {[%emt 0:00:02]} d5 {[%emt 0:00:01]} 2. e3 {[%emt 0:00:02]} Nf6 {[%emt 0:00:05]} 3. c4 {[%emt 0:00:01]} e6 {[%emt 0:00:01]} 4. Nc3 {[%emt 0:00:01]} b6 {[%emt 0:00:17]} 5. cxd5 {[%emt 0:00:02]} exd5 {[%emt 0:00:02]} 6. b4 {[%emt 0:00:00]} a6 {[%emt 0:00:45]} 7. Qa4+ {[%emt 0:00:12]} Bd7 {[%emt 0:00:30]} 8. Qb3 {[%emt 0:00:01]} c6 {[%emt 0:00:56]} 9. Bb2 {[%emt 0:00:22]} Bd6 {[%emt 0:00:21]} 10. Bd3 {[%emt 0:00:03]} O-O {[%emt 0:00:40]} 11. Qc2 {[%emt 0:01:04]} Re8 {[%emt 0:00:58]} 12. a3 {[%emt 0:00:40]} c5 {[%emt 0:01:18]} 13. Ng5 {[%emt 0:00:22]} h6 {[%emt 0:01:26]} 14. Nh7 {[%emt 0:00:02]} Bc6 {[%emt 0:04:59]} 15. Nxf6+ {[%emt 0:00:16]} Qxf6 {[%emt 0:00:01]} 16. Nxd5 {[%emt 0:00:19]} Qd8 {[%emt 0:00:44]} 17. bxc5 {[%emt 0:00:50]} Bxc5 {[%emt 0:01:22]} 18. Nf4 {[%emt 0:00:26]} Qg5 {[%emt 0:00:42]} 19. Kf1 {[%emt 0:00:26]} Nd7 {[%emt 0:00:25]} 20. h4 {[%emt 0:00:02]} Qe7 {[%emt 0:00:15]} 21. Rh3 {[%emt 0:00:03]} Rac8 {[%emt 0:00:47]} 22. Bxa6 {[%emt 0:00:55]} Rc7 {[%emt 0:00:40]} 23. Rg3 {[%emt 0:00:44]} Bd4 {[%emt 0:00:52]} 24. Qb1 {[%emt 0:02:12]} Be5 {[%emt 0:00:43]} 25. Bxe5 {[%emt 0:00:05]} Nxe5 {[%emt 0:00:04]} 26. d4 {[%emt 0:00:04]} Nd7 {[%emt 0:00:19]} 27. d5 {[%emt 0:00:48]} Nc5 {[%emt 0:00:01]} 28. dxc6 {[%emt 0:00:46]} Ne4 {[%emt 0:00:20]} 29. Qxb6 {[%emt 0:00:29]} Qxh4 {[%emt 0:00:13]} 30. Kg1 {[%emt 0:00:21]} Nxg3 {[%emt 0:00:12]} 31. fxg3 {[%emt 0:00:02]} Qf6 {[%emt 0:00:08]} 32. Rc1 {[%emt 0:00:15]} Qe5 {[%emt 0:00:10]} 33. Nd5 {[%emt 0:01:09]} Qxd5 {[%emt 0:00:07]} 34. Qxc7 {[%emt 0:00:01]} Qd2 {[%emt 0:00:01]} 35. Rf1 {[%emt 0:00:03]} Qxe3+ {[%emt 0:00:04]} 36. Kh2 {[%emt 0:00:01]} Re5 {[%emt 0:00:26]} 37. Qxf7+ {[%emt 0:00:06]} Kh7 {[%emt 0:00:03]} 38. Qf3 {[%emt 0:00:43]} Qc5 {[%emt 0:00:20]} 39. Bd3+ {[%emt 0:00:02]} Kg8 {[%emt 0:00:09]} 40. Qf7+ {[%emt 0:00:02]} 1-0

[Event "FIDE Open World Rapid 2024"]
[Site "New York"]
[Date "2024.12.27"]
[Round "9.31"]
[White "Cheparinov, Ivan"]
[Black "Moroni, Luca Jr"]
[Result "1-0"]
[ECO "B30"]
[WhiteElo "2646"]
[BlackElo "2550"]
[Annotator "ChessBase"]
[PlyCount "59"]
[EventDate "2024.12.14"]
[EventType "swiss"]
[EventCountry "USA"]
[SourceTitle "playchess.com"]
[Source "ChessBase"]
[SourceQuality "1"]
[TimeControl "900+10"]

1. e4 {[%emt 0:00:04]} c5 {[%emt 0:00:02]} 2. Nf3 {[%emt 0:00:01]} Nc6 {[%emt 0:00:01]} 3. Bb5 {[%emt 0:00:04]} Qc7 {[%emt 0:00:01]} 4. O-O {[%emt 0:00:19]} a6 {[%emt 0:00:00]} 5. Bxc6 {[%emt 0:00:43]} dxc6 {[%emt 0:00:02]} 6. d3 {[%emt 0:00:47]} e5 {[%emt 0:00:02]} 7. a4 {[%emt 0:00:23]} a5 {[%emt 0:00:01]} 8. Na3 {[%emt 0:00:20]} Ne7 {[%emt 0:00:03]} 9. Nc4 {[%emt 0:00:12]} Ng6 {[%emt 0:00:02]} 10. b3 {[%emt 0:00:23]} f6 {[%emt 0:00:10]} 11. Re1 {[%emt 0:00:27]} Be6 {[%emt 0:00:03]} 12. Bd2 {[%emt 0:00:20]} Be7 {[%emt 0:00:13]} 13. Bc3 {[%emt 0:00:31]} O-O {[%emt 0:00:18]} 14. Ne3 {[%emt 0:00:13]} Rfd8 {[%emt 0:00:47]} 15. g3 {[%emt 0:00:03]} Nf8 {[%emt 0:01:45]} 16. Nh4 {[%emt 0:00:31]} g6 {[%emt 0:00:12]} 17. Qd2 {[%emt 0:01:16]} b6 {[%emt 0:00:15]} 18. Kh1 {[%emt 0:00:44]} Bc8 {[%emt 0:00:48]} 19. f4 {[%emt 0:01:14]} exf4 {[%emt 0:00:29]} 20. gxf4 {[%emt 0:00:01]} Qxf4 {[%emt 0:00:53]} 21. Nhg2 {[%emt 0:00:01]} Qg5 {[%emt 0:01:49]} 22. Qf2 {[%emt 0:00:42]} Ne6 {[%emt 0:00:52]} 23. Nf5 {[%emt 0:02:07]} gxf5 {[%emt 0:00:51]} 24. exf5 {[%emt 0:00:01]} Nd4 {[%emt 0:00:13]} 25. Rxe7 {[%emt 0:00:11]} Bxf5 {[%emt 0:01:22]} 26. Rg1 {[%emt 0:00:41]} Bg4 {[%emt 0:02:09]} 27. h3 {[%emt 0:00:05]} Kf8 {[%emt 0:01:28]} 28. Rxh7 {[%emt 0:00:21]} Qf5 {[%emt 0:00:35]} 29. Qh4 {[%emt 0:00:07]} Kg8 {[%emt 0:00:41]} 30. Nf4 {[%emt 0:00:28]} 1-0

[Event "FIDE Open World Rapid 2024"]
[Site "New York"]
[Date "2024.12.27"]
[Round "9.32"]
[White "Karthik Venkataraman"]
[Black "Andriasian, Zaven"]
[Result "1/2-1/2"]
[ECO "B90"]
[WhiteElo "2603"]
[BlackElo "2554"]
[Annotator "ChessBase"]
[PlyCount "68"]
[EventDate "2024.12.14"]
[EventType "swiss"]
[EventCountry "USA"]
[SourceTitle "playchess.com"]
[Source "ChessBase"]
[SourceQuality "1"]
[TimeControl "900+10"]

1. e4 {[%emt 0:00:02]} c5 {[%emt 0:00:01]} 2. Nf3 {[%emt 0:00:02]} d6 {[%emt 0:00:01]} 3. d4 {[%emt 0:00:02]} cxd4 {[%emt 0:00:02]} 4. Nxd4 {[%emt 0:00:01]} Nf6 {[%emt 0:00:01]} 5. Nc3 {[%emt 0:00:01]} a6 {[%emt 0:00:02]} 6. Be3 {[%emt 0:00:02]} Ng4 {[%emt 0:00:03]} 7. Bc1 {[%emt 0:00:06]} Nf6 {[%emt 0:00:02]} 8. Be3 {[%emt 0:00:02]} Ng4 {[%emt 0:00:08]} 9. Bg5 {[%emt 0:00:42]} h6 {[%emt 0:00:02]} 10. Bh4 {[%emt 0:00:02]} g5 {[%emt 0:00:01]} 11. Bg3 {[%emt 0:00:01]} Bg7 {[%emt 0:00:01]} 12. h3 {[%emt 0:00:07]} Ne5 {[%emt 0:00:04]} 13. f3 {[%emt 0:00:45]} Nbc6 {[%emt 0:00:02]} 14. Bf2 {[%emt 0:00:01]} Be6 {[%emt 0:00:05]} 15. Qd2 {[%emt 0:00:08]} Rc8 {[%emt 0:00:20]} 16. h4 {[%emt 0:00:10]} Qa5 {[%emt 0:00:35]} 17. Nxe6 {[%emt 0:01:09]} fxe6 {[%emt 0:00:02]} 18. hxg5 {[%emt 0:00:02]} hxg5 {[%emt 0:00:05]} 19. Rxh8+ {[%emt 0:00:02]} Bxh8 {[%emt 0:00:02]} 20. Nd1 {[%emt 0:00:20]} Qa4 {[%emt 0:02:28]} 21. Nc3 {[%emt 0:03:05]} Qb4 {[%emt 0:01:05]} 22. Nd1 {[%emt 0:00:02]} Nc4 {[%emt 0:04:50]} 23. Bxc4 {[%emt 0:00:02]} Qxc4 {[%emt 0:00:01]} 24. Ne3 {[%emt 0:00:02]} Qb5 {[%emt 0:00:08]} 25. c3 {[%emt 0:00:02]} Ne5 {[%emt 0:01:51]} 26. Rd1 {[%emt 0:00:03]} Bf6 {[%emt 0:00:32]} 27. Qc2 {[%emt 0:01:27]} Kd7 {[%emt 0:01:23]} 28. a4 {[%emt 0:00:47]} Qc6 {[%emt 0:00:00]} 29. Qb3 {[%emt 0:00:07]} b5 {[%emt 0:00:00]} 30. axb5 {[%emt 0:00:07]} axb5 {[%emt 0:00:00]} 31. Ra1 {[%emt 0:00:33]} Nc4 {[%emt 0:00:58]} 32. Ra7+ {[%emt 0:01:20]} Ke8 {[%emt 0:00:01]} 33. Nxc4 {[%emt 0:01:04]} bxc4 {[%emt 0:00:03]} 34. Qb7 {[%emt 0:00:08]} Qxb7 {[%emt 0:01:08]} 1/2-1/2

[Event "FIDE Open World Rapid 2024"]
[Site "New York"]
[Date "2024.12.28"]
[Round "9.32"]
[White "Hungaski, Robert"]
[Black "Chanda, Sandipan"]
[Result "1/2-1/2"]
[ECO "A00"]
[WhiteElo "2477"]
[BlackElo "2480"]
[Annotator "ChessBase"]
[PlyCount "86"]
[EventDate "2024.12.14"]
[EventType "swiss"]
[EventCountry "USA"]
[SourceTitle "playchess.com"]
[Source "ChessBase"]
[SourceQuality "1"]
[TimeControl "900+10"]

1. h3 {[%emt 0:00:03]} d5 {[%emt 0:00:29]} 2. e3 {[%emt 0:00:02]} e5 {[%emt 0:00:07]} 3. d4 {[%emt 0:00:02]} e4 {[%emt 0:00:09]} 4. Ne2 {[%emt 0:00:36]} Nf6 {[%emt 0:00:11]} 5. b3 {[%emt 0:00:17]} c6 {[%emt 0:00:08]} 6. Qd2 {[%emt 0:00:03]} Be7 {[%emt 0:01:08]} 7. Ba3 {[%emt 0:00:07]} O-O {[%emt 0:00:03]} 8. c4 {[%emt 0:01:23]} Bxa3 {[%emt 0:00:30]} 9. Nxa3 {[%emt 0:00:02]} Qe7 {[%emt 0:00:02]} 10. Nc2 {[%emt 0:00:10]} dxc4 {[%emt 0:00:32]} 11. bxc4 {[%emt 0:00:03]} c5 {[%emt 0:00:01]} 12. Nc3 {[%emt 0:01:46]} Rd8 {[%emt 0:00:23]} 13. Be2 {[%emt 0:01:08]} Nc6 {[%emt 0:00:03]} 14. O-O {[%emt 0:01:20]} Bf5 {[%emt 0:00:10]} 15. Rfd1 {[%emt 0:00:37]} h5 {[%emt 0:00:50]} 16. Qe1 {[%emt 0:00:35]} Rd7 {[%emt 0:00:20]} 17. Rd2 {[%emt 0:00:45]} Rad8 {[%emt 0:00:05]} 18. Rad1 {[%emt 0:00:04]} g5 {[%emt 0:00:56]} 19. dxc5 {[%emt 0:00:52]} Qxc5 {[%emt 0:00:17]} 20. Rxd7 {[%emt 0:01:12]} Rxd7 {[%emt 0:00:01]} 21. Rxd7 {[%emt 0:00:14]} Bxd7 {[%emt 0:00:02]} 22. Qd2 {[%emt 0:00:29]} Be6 {[%emt 0:01:41]} 23. Nd4 {[%emt 0:01:58]} Bxc4 {[%emt 0:00:40]} 24. Nxc6 {[%emt 0:02:12]} Qxc6 {[%emt 0:01:33]} 25. Qd4 {[%emt 0:00:02]} Bxe2 {[%emt 0:00:07]} 26. Nxe2 {[%emt 0:00:02]} Kg7 {[%emt 0:01:29]} 27. Ng3 {[%emt 0:01:55]} Kg6 {[%emt 0:00:09]} 28. h4 {[%emt 0:00:47]} Qc1+ {[%emt 0:00:28]} 29. Nf1 {[%emt 0:00:07]} gxh4 {[%emt 0:00:01]} 30. Qxa7 {[%emt 0:00:19]} Nd5 {[%emt 0:00:25]} 31. Qxb7 {[%emt 0:00:26]} Nc3 {[%emt 0:00:08]} 32. Qa6+ {[%emt 0:00:03]} f6 {[%emt 0:00:01]} 33. Qc4 {[%emt 0:00:28]} Kh6 {[%emt 0:01:31]} 34. Kh2 {[%emt 0:00:28]} Qb2 {[%emt 0:00:06]} 35. a4 {[%emt 0:00:11]} Qxf2 {[%emt 0:00:35]} 36. Qxc3 {[%emt 0:00:01]} Qxf1 {[%emt 0:00:08]} 37. a5 {[%emt 0:00:15]} Kg6 {[%emt 0:01:33]} 38. Qd4 {[%emt 0:00:11]} Qd3 {[%emt 0:00:10]} 39. Qb6 {[%emt 0:00:07]} Qc3 {[%emt 0:01:07]} 40. a6 {[%emt 0:00:13]} Qe5+ {[%emt 0:00:04]} 41. Kh1 {[%emt 0:00:04]} Qa1+ {[%emt 0:00:19]} 42. Kh2 {[%emt 0:00:02]} Qe5+ {[%emt 0:00:01]} 43. Kh1 {[%emt 0:00:12]} Qa1+ {[%emt 0:01:00]} 1/2-1/2

[Event "FIDE Open World Rapid 2024"]
[Site "New York"]
[Date "2024.12.27"]
[Round "9.33"]
[White "Meier, Georg"]
[Black "Svane, Frederik"]
[Result "1-0"]
[ECO "A46"]
[WhiteElo "2599"]
[BlackElo "2668"]
[Annotator "ChessBase"]
[PlyCount "123"]
[EventDate "2024.12.14"]
[EventType "swiss"]
[EventCountry "USA"]
[SourceTitle "playchess.com"]
[Source "ChessBase"]
[SourceQuality "1"]
[TimeControl "900+10"]

1. Nf3 {[%emt 0:00:01]} e6 {[%emt 0:00:01]} 2. g3 {[%emt 0:00:16]} b5 {[%emt 0:00:01]} 3. Bg2 {[%emt 0:00:02]} Bb7 {[%emt 0:00:00]} 4. O-O {[%emt 0:00:03]} c5 {[%emt 0:00:02]} 5. c3 {[%emt 0:00:40]} Nf6 {[%emt 0:00:21]} 6. d4 {[%emt 0:00:34]} cxd4 {[%emt 0:01:31]} 7. cxd4 {[%emt 0:00:14]} Be7 {[%emt 0:00:02]} 8. Bg5 {[%emt 0:00:23]} O-O {[%emt 0:00:16]} 9. e3 {[%emt 0:00:05]} Qb6 {[%emt 0:01:45]} 10. Nc3 {[%emt 0:03:24]} h6 {[%emt 0:02:36]} 11. Bxf6 {[%emt 0:00:05]} Bxf6 {[%emt 0:00:01]} 12. Qb3 {[%emt 0:00:52]} b4 {[%emt 0:02:01]} 13. Na4 {[%emt 0:00:03]} Qb5 {[%emt 0:00:01]} 14. Rfc1 {[%emt 0:02:09]} Na6 {[%emt 0:01:35]} 15. Nc5 {[%emt 0:01:23]} Bd5 {[%emt 0:00:31]} 16. Qa4 {[%emt 0:00:03]} Qxa4 {[%emt 0:00:06]} 17. Nxa4 {[%emt 0:00:01]} Bc6 {[%emt 0:02:20]} 18. b3 {[%emt 0:00:25]} Bxa4 {[%emt 0:00:46]} 19. bxa4 {[%emt 0:00:02]} Rac8 {[%emt 0:00:06]} 20. Nd2 {[%emt 0:04:08]} d5 {[%emt 0:00:06]} 21. Bf1 {[%emt 0:00:53]} Nb8 {[%emt 0:00:04]} 22. Nb3 {[%emt 0:00:29]} Be7 {[%emt 0:00:12]} 23. a5 {[%emt 0:00:56]} Bd6 {[%emt 0:00:29]} 24. Bb5 {[%emt 0:00:07]} f6 {[%emt 0:01:04]} 25. Rab1 {[%emt 0:00:18]} Kf7 {[%emt 0:00:53]} 26. Nc5 {[%emt 0:00:38]} Bxc5 {[%emt 0:00:40]} 27. Rxc5 {[%emt 0:00:51]} Rxc5 {[%emt 0:00:03]} 28. dxc5 {[%emt 0:00:01]} Rc8 {[%emt 0:00:12]} 29. Rxb4 {[%emt 0:00:02]} Rxc5 {[%emt 0:00:06]} 30. Bd3 {[%emt 0:00:01]} Nd7 {[%emt 0:01:43]} 31. Rb7 {[%emt 0:00:03]} Ke7 {[%emt 0:00:01]} 32. Bb5 {[%emt 0:00:12]} a6 {[%emt 0:00:34]} 33. Bxd7 {[%emt 0:00:19]} Kd6 {[%emt 0:00:00]} 34. Be8 {[%emt 0:00:12]} g5 {[%emt 0:00:04]} 35. h4 {[%emt 0:00:20]} gxh4 {[%emt 0:00:15]} 36. gxh4 {[%emt 0:00:01]} Rxa5 {[%emt 0:00:01]} 37. a4 {[%emt 0:00:00]} Rc5 {[%emt 0:00:08]} 38. h5 {[%emt 0:00:06]} Rc4 {[%emt 0:00:33]} 39. Ra7 {[%emt 0:00:19]} f5 {[%emt 0:00:19]} 40. Rxa6+ {[%emt 0:00:11]} Ke7 {[%emt 0:00:01]} 41. Bg6 {[%emt 0:00:06]} f4 {[%emt 0:00:19]} 42. Ra7+ {[%emt 0:00:07]} Kd6 {[%emt 0:00:01]} 43. Ra6+ {[%emt 0:00:24]} Ke7 {[%emt 0:00:01]} 44. Kg2 {[%emt 0:00:07]} fxe3 {[%emt 0:00:15]} 45. fxe3 {[%emt 0:00:01]} Rc3 {[%emt 0:00:11]} 46. Kf2 {[%emt 0:00:02]} Ra3 {[%emt 0:00:01]} 47. Bh7 {[%emt 0:00:29]} Kf7 {[%emt 0:00:14]} 48. Ke2 {[%emt 0:00:04]} Rc3 {[%emt 0:00:18]} 49. Kd2 {[%emt 0:00:11]} Ra3 {[%emt 0:00:01]} 50. Bc2 {[%emt 0:00:30]} Kf6 {[%emt 0:00:06]} 51. Ra8 {[%emt 0:00:06]} Ke5 {[%emt 0:00:27]} 52. Rh8 {[%emt 0:00:10]} d4 {[%emt 0:00:07]} 53. exd4+ {[%emt 0:00:01]} Kxd4 {[%emt 0:00:02]} 54. Rxh6 {[%emt 0:00:14]} Rh3 {[%emt 0:00:02]} 55. Rxe6 {[%emt 0:00:05]} Rxh5 {[%emt 0:00:02]} 56. Rc6 {[%emt 0:00:02]} Rh1 {[%emt 0:00:06]} 57. Rc8 {[%emt 0:00:10]} Rg1 {[%emt 0:00:03]} 58. Bb3 {[%emt 0:00:12]} Rg2+ {[%emt 0:00:12]} 59. Kc1 {[%emt 0:00:02]} Rh2 {[%emt 0:00:01]} 60. Bc2 {[%emt 0:00:05]} Rg2 {[%emt 0:00:02]} 61. Kb2 {[%emt 0:00:02]} Rg3 {[%emt 0:00:01]} 62. Bb3 {[%emt 0:00:04]} 1-0